Cogmind - Beta 16.1 @@@ ROGUE MODE // 2026.03.30 @ 18:49:34 Player: the Result: Destroyed by Lightning with EMDS Performance ------------- Evolutions (4) 2000 Regions Visited (14) 2800 Robots Destroyed (115) 575 Value Destroyed (3986) 3986 Prototype IDs (17) 340 Alien Tech Used (0) 0 Bonus (4702) 4702 TOTAL SCORE: 14403 Bonus ------- High Alert Combat Kills 287 Follower Combat Kills 2415 Network Hubs Disabled 600 Met Imprinter 300 Built Enhanced Grunts 300 A7 Reached Mainframe 300 Met R17 at Cetus 500 Cogmind --------- Core Integrity 0/850 Matter 300/300 Energy 69/100 System Corruption 62% Temperature Cool (0) Movement Walking (100) Location -6/Hub_04(d) Parts ------- > --- POWER (2) -------- (None) > --- PROPULSION (5) --- Enhanced Biometal Leg Compact Wheel > --- UTILITY (6) ------ Experimental Heat Sink Large Storage Unit Improved Melee Analysis Suite > --- WEAPON (2) ------- Powered Hammer > --- INVENTORY (15) --- Quantum Reactor Quantum Reactor Advanced Sensor Array Advanced Terrain Scanner Advanced Terrain Scan Processor Experimental Targeting Computer Force Booster Makeshift Transmission Jammer Experimental Phase Shifter Heavy Reactive Plating Force Field Hacking Drone Bay (1/1) Phasing Sabre Peak State ------------ > --- POWER ------------ Cold Fusion Reactor Quantum Reactor > --- PROPULSION ------- Armored Leg Enhanced Flexi-carbon Leg Enhanced Flexi-carbon Leg Enhanced Flexi-carbon Leg Enhanced Flexi-carbon Leg > --- UTILITY ---------- Large Storage Unit Improved Signal Interpreter Improved Melee Analysis Suite Improved Heavy Armor Plating Hacking Drone Bay > --- WEAPON ----------- Powered Hammer Heavy Pick > --- INVENTORY -------- Quantum Reactor Advanced Sensor Array Advanced Terrain Scanner Advanced Terrain Scan Processor Improved Melee Analysis Suite Microactuators Force Booster Makeshift Transmission Jammer Centrium Medium Armor Plating Centrium Medium Armor Plating Heavy Reactive Plating Force Field Phasing Sabre Phasing Sabre [Rating: 92] Favorites ----------- Power Enhanced Nuclear Core Engine Improved Deuterium Engine Power Core Enhanced Nuclear Core Reactor Cold Fusion Reactor Propulsion Improved Titanium Leg Treads Light Treads Leg Improved Titanium Leg Wheel Compact Wheel Flight Unit VTOL Module Utility Improved Signal Interpreter Device Improved Sensor Array Storage Large Storage Unit Processor Improved Signal Interpreter Protection Improved Heavy Armor Plating Weapon Greatsword Impact Weapon Powered Hammer Slashing Weapon Greatsword Piercing Weapon Heavy Pick Build | -11 -10 -9 -9 -8 -7 -7 -7 -7 -6 -6 -6 -6 -6 -6 ------- Run | Yrd Mat Mat Sto Mat Fac Low Low Zio Pro Fac Ext Cet Arc Hub Slots Evolved 8 | . . 2 . 2 2 . . . . 2 . . . . Power 1 | . . . . . . . . . . 1 . . . . Propulsion 3 | . . 2 . . 1 . . . . . . . . . Utility 4 | . . . . 2 1 . . . . 1 . . . . Weapon . | . . . . . . . . . . . . . . . Parts Attached 124 | 2 1 7 5 4 20 6 1 3 7 20 16 6 7 19 Power 21 | . . 1 1 1 2 . . . 1 7 2 2 2 2 Engine 8 | . . 1 1 1 . . . . . 3 2 . . . Core 5 | . . . . . 2 . . . 1 2 . . . . Reactor 8 | . . . . . . . . . . 2 . 2 2 2 Propulsion 47 | 2 . 4 2 . 10 2 1 1 3 2 8 2 1 9 Treads 3 | 2 . . . . . . 1 . . . . . . . Leg 30 | . . . . . 5 2 . 1 3 2 8 2 1 6 Wheel 3 | . . . . . . . . . . . . . . 3 Hover . | . . . . . . . . . . . . . . . Flight 11 | . . 4 2 . 5 . . . . . . . . . Utility 46 | . 1 1 1 2 7 3 . 2 2 9 5 2 4 7 Device 22 | . 1 . . 1 2 2 . 1 1 5 1 1 4 3 Storage 1 | . . . . . 1 . . . . . . . . . Processor 8 | . . . . 1 2 . . 1 . 2 . . . 2 Hackware . | . . . . . . . . . . . . . . . Protection 15 | . . 1 1 . 2 1 . . 1 2 4 1 . 2 Artifact . | . . . . . . . . . . . . . . . Weapon 10 | . . 1 1 1 1 1 . . 1 2 1 . . 1 Energy Gun . | . . . . . . . . . . . . . . . Energy Cannon . | . . . . . . . . . . . . . . . Ballistic Gun . | . . . . . . . . . . . . . . . Ballistic Cannon . | . . . . . . . . . . . . . . . Launcher . | . . . . . . . . . . . . . . . Special Weapon . | . . . . . . . . . . . . . . . Impact Weapon 4 | . . 1 1 . . . . . . 1 1 . . . Slashing Weapon 5 | . . . . 1 1 1 . . 1 . . . . 1 Piercing Weapon 1 | . . . . . . . . . . 1 . . . . Special Melee Weapon . | . . . . . . . . . . . . . . . Unidentified Prototypes 12 | . . . 2 . 2 . . . . 2 . 1 1 4 Corrupted Parts 3 | . . . . . . . . . . 1 . . 1 1 System Corruption 19 | . . . . . . . . . . 9 . . 7 3 Parts Lost 38 | . . . . . . 3 . . 8 4 2 . . 21 Power 6 | . . . . . . . . . 2 1 . . . 3 Propulsion 18 | . . . . . . 1 . . 4 2 1 . . 10 Utility 10 | . . . . . . 1 . . 1 1 1 . . 6 Weapon 4 | . . . . . . 1 . . 1 . . . . 2 Highest Loss Streak 8 | . . . . . . 3 . . 5 3 1 . . 8 To Critical Strikes . | . . . . . . . . . . . . . . . Average Backups 12 | 2 4 5 5 5 5 9 12 15 12 14 13 13 14 13 Power . | . 1 . . . . . 1 1 . . 1 1 1 1 Propulsion . | 1 . . . . . . . . . . . . 1 . Utility 9 | . 3 4 4 4 4 8 9 10 11 12 10 9 10 9 Weapon 1 | . . . . 1 1 1 2 3 1 1 2 2 2 1 Tool/Special . | . . . . . . . . . . . . . . . Unused Backups 23 | . 4 3 1 1 . . . 1 1 4 2 1 . 5 Power 2 | . 1 1 . . . . . . . . . . . . Propulsion 3 | . 2 1 . . . . . . . . . . . . Utility 15 | . 1 1 1 1 . . . . 1 3 2 1 . 4 Weapon 3 | . . . . . . . . 1 . 1 . . . 1 Tool/Special . | . . . . . . . . . . . . . . . Average Slot Usage (%) 90 | . 35 81 87 88 88 91 92 92 94 88 94 93 93 88 Engine 2 | . . 10 11 9 . . . . . 7 6 1 . . Core 3 | . . . . . 6 7 7 7 4 1 . . . . Reactor 3 | . . . . . . . . . . 1 6 10 13 11 Leg 29 | . . . . . 21 37 38 38 35 23 28 33 33 29 Flight 4 | . . 40 43 36 15 . . . . . . . . . Device 11 | . 7 11 11 17 17 12 15 9 13 17 12 5 6 5 Storage 5 | . . . . . 3 7 7 7 7 6 6 6 6 6 Processor 14 | . . . . 8 12 15 15 20 15 13 13 13 13 13 Protection 3 | . . 10 11 9 1 1 . . 1 2 6 6 5 6 Impact Weapon 3 | . . 7 11 7 . . . . . 3 6 6 6 6 Slashing Weapon 4 | . . . . 1 7 7 7 7 14 6 . . . . Piercing Weapon 2 | . . . . . . . . . . 3 6 6 6 5 Peak Build Rating 92 | 2 3 16 18 25 50 52 49 61 59 67 72 80 81 92 Average Rating 55 | 1 2 13 15 21 43 46 47 52 53 57 65 75 79 78 On Entrance 39 | . 2 3 15 16 23 48 47 48 54 46 67 70 76 80 Avg Prop Armor Cover (%) 17 | 41 39 37 . . 15 . . . 19 10 . . . 7 Naked Turns . | . . . . . . . . . . . . . . . Heaviest Build 80 | . 1 18 19 20 35 45 35 35 43 55 71 80 80 80 Greatest Support 128 | 3 3 20 20 20 96 96 91 103 103 76 90 90 103 128 Greatest Overweight (x) 7 | . . . 1 . . . . . . . 1 . . 7 Average Overweight (x) . | . . . . . . . . . . . . . . . Largest Inventory Capacity 15 | 5 5 5 5 5 15 15 15 15 15 15 15 15 15 15 Average Capacity 13 | 5 5 5 5 5 9 15 15 15 15 15 15 15 15 15 Most Carried 15 | 4 5 5 5 5 9 12 15 15 15 15 15 15 15 15 Average Carried 12 | 2 4 4 5 4 5 9 12 14 12 14 14 14 15 14 Final Capacity 15 | 5 5 5 5 5 15 15 15 15 15 15 15 15 15 15 Final Carried 15 | 4 5 5 5 5 9 12 15 15 13 15 14 15 15 14 Class Distribution -------------------- 58% | Gladiator 16% | Commander-Gladiator 12% | Scavenger-Gladiator 6% | Sprinter Dominant Class ---------------- Mutant | -10/Materials Sprinter | -9/Materials Sprinter | -9/Storage Sprinter | -8/Materials Scout | -7/Factory Gladiator | -7/Lower Caves Gladiator | -7/Lower Caves Gladiator | -7/Zion Gladiator | -6/Proximity Caves Gladiator | -6/Factory Gladiator | -6/Extension Commander-Gladiator | -6/Cetus Commander-Gladiator | -6/Archives Scavenger-Gladiator | -6/Hub_04(d) Resources | -11 -10 -9 -9 -8 -7 -7 -7 -7 -6 -6 -6 -6 -6 -6 ----------- Run | Yrd Mat Mat Sto Mat Fac Low Low Zio Pro Fac Ext Cet Arc Hub Matter Collected 2818 | 205 21 70 110 30 309 150 82 61 100 438 425 136 136 545 Remotely . | . . . . . . . . . . . . . . . Salvage Created 5771 | . 17 148 550 101 337 688 109 . 280 1198 705 37 253 1348 Parts 215 | . 1 5 15 . 15 19 5 . 12 52 15 . 23 53 Haulers Intercepted 10 | . . . 5 . 1 . . . . 2 . . . 2 Recyclers Shooed 2 | . . 1 . . . . . . . . 1 . . . Parts Field Recycled . | . . . . . . . . . . . . . . . Retrieved Matter . | . . . . . . . . . . . . . . . Parts Self-Destructed 28 | . . . . . . 14 6 1 7 . . . . . Prevented . | . . . . . . . . . . . . . . . Parts Restored . | . . . . . . . . . . . . . . . Kills | -11 -10 -9 -9 -8 -7 -7 -7 -7 -6 -6 -6 -6 -6 -6 ------- Run | Yrd Mat Mat Sto Mat Fac Low Low Zio Pro Fac Ext Cet Arc Hub Combat Hostiles Destroyed 52 | . 1 . 2 . 2 9 3 . 4 8 9 . . 14 Melee 36 | . 1 . 1 . 2 9 3 . 4 6 3 . . 7 AOE 2 | . . . . . . . . . . . . . . 2 Classes Destroyed 17 | . 1 3 5 . 1 4 . . 1 . . . . 2 Worker 15 | . . 1 3 1 1 . . . . 3 . . . 6 Builder 5 | . . . 3 . . . . . . 1 . . . 1 Tunneler 2 | . . 1 . . 1 . . . . . . . . . Hauler 10 | . . . 5 . 1 . . . . 2 . . . 2 Recycler 10 | . . 2 2 . 1 . . . . 3 1 . . 1 Operator 11 | . . . 1 . 1 . . . . 1 1 . 7 . Watcher 10 | . . . 2 3 2 . . . . 1 . 1 . 1 Swarmer 4 | . . . 1 . . 2 1 . . . . . . . Grunt 16 | . 1 . 1 . 1 4 1 . . 3 3 . . 2 Brawler 1 | . . . . . . 1 . . . . . . . . Duelist 2 | . . . . . . 1 . . 1 . . . . . Protector 1 | . . . . . . . . . . . . . . 1 Sentry 11 | . . . . . . 1 1 . . 2 5 . . 2 Specialist 4 | . . . . . . . . . . . . . . 4 Hunter 6 | . . . . . . . . . 3 1 1 . . 1 Programmer 4 | . . . . . 1 . . . . 2 . . . 1 Lightning 3 | . . . . . . . . . . . . . . 3 Decomposer 1 | . . . . . . 1 . . . . . . . . Samaritan 3 | . . . . . . 2 . . 1 . . . . . Best Kill Streak 7 | . 1 2 4 2 2 7 2 . 2 3 3 1 3 5 Combat Bots Only 7 | . 1 . 1 . 1 7 2 . 2 3 2 . . 3 Max Kills in Single Turn 5 | . 1 1 1 1 1 1 1 . 1 1 1 1 1 5 Gunslinging . | . . . . . . . . . . . . . . . Exploded 2 | . . . . . . . . . . . . . . 2 Melee 1 | . 1 . 1 . 1 1 1 . 1 1 1 . . 1 Uniques/NPCs Destroyed . | . . . . . . . . . . . . . . . Combat | -11 -10 -9 -9 -8 -7 -7 -7 -7 -6 -6 -6 -6 -6 -6 -------- Run | Yrd Mat Mat Sto Mat Fac Low Low Zio Pro Fac Ext Cet Arc Hub Hostile Shots Fired 827 | . 42 . 17 42 17 49 7 8 92 73 170 9 1 300 Missed 259 | . 20 . 10 19 8 13 3 5 17 21 68 2 . 73 Hits 568 | . 22 . 7 23 9 36 4 3 75 52 102 7 1 227 Melee 9 | . . . . . . 4 . . 5 . . . . . Projectile 559 | . 22 . 7 23 9 32 4 3 70 52 102 7 1 227 AOE 1 | . . . . . . . . . . . . . . 1 Critical Strikes 15 | . . . . . . 2 . . 2 . 1 2 . 8 Part Disruptions 8 | . . . . . . . . . . . . . . 8 Damage Taken 9326 | . 227 . 108 198 106 636 98 53 1409 508 856 210 46 4871 Core 1240 | . 52 . 32 32 . 84 32 . 129 74 49 27 . 729 Absorbed by Shields 619 | . . . . . . . . . . . 401 117 47 54 Ignored by Resistances 24 | . . . . . . . . . . 24 . . . . Regen/Repaired (Parts) 22 | . . . 22 . . . . . . . . . . . Core Remaining (%) 86 | 100 79 . 92 94 . . . . 65 . . . . . Volleys Fired . | . . . . . . . . . . . . . . . Largest . | . . . . . . . . . . . . . . . Hottest . | . . . . . . . . . . . . . . . Shots Fired . | . . . . . . . . . . . . . . . Gun . | . . . . . . . . . . . . . . . Cannon . | . . . . . . . . . . . . . . . Launcher . | . . . . . . . . . . . . . . . Special . | . . . . . . . . . . . . . . . Kinetic . | . . . . . . . . . . . . . . . Thermal . | . . . . . . . . . . . . . . . Explosive . | . . . . . . . . . . . . . . . Electromagnetic . | . . . . . . . . . . . . . . . Robot Hit Streak . | . . . . . . . . . . . . . . . Robot Miss Streak . | . . . . . . . . . . . . . . . Penetration Max . | . . . . . . . . . . . . . . . Secondary Targets . | . . . . . . . . . . . . . . . Shots Hit Robots 276 | . . 6 30 4 16 27 4 2 29 39 38 1 9 71 Core Hits 95 | . . 1 6 . 6 14 3 1 9 15 9 . 5 26 Critical Kills 2 | . . . . . . . . . . . . . . 2 Critical Parts Destroyed 18 | . . . 4 2 . . . . . 3 4 . . 5 Critical Strikes 39 | . . . 4 2 2 3 1 1 4 6 5 . 1 10 Smash 20 | . . . 4 2 . . . . . 3 4 . . 7 Sever 15 | . . . . . 2 3 1 1 4 3 . . . 1 Impale 4 | . . . . . . . . . . . 1 . 1 2 Melee Attacks 442 | . . 17 57 19 31 35 11 3 40 61 48 1 10 109 Impact 203 | . . 17 57 17 . . . . . 17 26 1 2 66 Slashing 164 | . . . . 2 31 35 11 3 40 35 . . . 7 Piercing 75 | . . . . . . . . . . 9 22 . 8 36 Sneak Attacks 62 | . . 5 13 1 6 4 . . 1 11 5 . 8 8 Combat Hostiles 4 | . . . . . . . . . . 2 1 . . 1 Follow-up Attacks 28 | . . . . . . . . . 5 4 8 . 1 10 Damage Inflicted 15203 | . 2 505 1836 230 1164 1788 201 101 1051 2095 1571 61 587 4011 Guns . | . . . . . . . . . . . . . . . Cannons . | . . . . . . . . . . . . . . . Explosions 631 | . . . . . . . . . . . . . . 631 Melee 14548 | . . 505 1836 230 1164 1788 201 101 1051 2073 1571 61 587 3380 Ramming 24 | . 2 . . . . . . . . 22 . . . . Kinetic . | . . . . . . . . . . . . . . . Thermal 23 | . . . . . . . . . . . . . . 23 Explosive . | . . . . . . . . . . . . . . . Electromagnetic 608 | . . . . . . . . . . . . . . 608 Impact 6727 | . . 505 1836 230 . . . . . 704 950 61 82 2359 Slashing 5724 | . . . . . 1164 1788 201 101 1051 1229 . . . 190 Piercing 2097 | . . . . . . . . . . 140 621 . 505 831 Highest Corruption 61 | . 4 . . . 2 6 6 6 . 14 14 14 19 61 Average Corruption 10 | . 3 . . . 2 5 6 6 . 7 14 14 13 23 Corruption Purged 21 | . . . . . . . . . . . . . 21 . Corruption Blocked . | . . . . . . . . . . . . . . . Effects 188 | . 2 . . . 2 30 34 1 . 10 50 16 10 33 Message Errors 41 | . . . . . . 7 6 . . 3 13 3 3 6 Matter Fused 45 | . . . . . 1 6 8 1 . 4 10 2 3 10 Heat Flow Errors 23 | . 2 . . . . 3 6 . . 1 8 2 . 1 Energy Discharges 20 | . . . . . 1 3 . . . . 5 2 2 7 Parts Rejected 4 | . . . . . . . . . . . 2 . . 2 Parts Fused 3 | . . . . . . 1 . . . 1 1 . . . Data Loss (minor) 28 | . . . . . . 7 7 . . . 5 4 2 3 Data Loss (major) 16 | . . . . . . 3 5 . . . 5 2 . 1 Alerts 5 | . . . . . . . 2 . . 1 1 1 . . Misdirections 3 | . . . . . . . . . . . . . . 3 Overload Shots . | . . . . . . . . . . . . . . . Overflow Damage 3153 | . . 189 602 173 212 289 . . . 574 272 47 166 629 Projectiles . | . . . . . . . . . . . . . . . Explosions 10 | . . . . . . . . . . . . . . 10 Melee 3143 | . . 189 602 173 212 289 . . . 574 272 47 166 619 Knockbacks 26 | . . 2 3 1 . . . . . 1 4 . . 15 Impact 26 | . . 2 3 1 . . . . . 1 4 . . 15 Kinetic . | . . . . . . . . . . . . . . . Secondary . | . . . . . . . . . . . . . . . Self-Inflicted Damage 320 | . . . . . . . . . . . . . . 320 Shots 3 | . . . . . . . . . . . . . . 3 Rammed 2 | . 2 . . . . . . . . . . . . . Targets Rammed 4 | . 3 . . . . . . . . 1 . . . . Kicked 1 | . . . . . . . . . . 1 . . . . Crushed 1 | . 1 . . . . . . . . . . . . . Highest Temperature 274 | . 274 9 18 14 23 193 141 . . 75 260 239 . 220 Average Temperature 34 | . 164 3 4 6 6 82 61 . . 45 112 113 . 121 Received Heat Transfer 898 | . 75 . 39 18 30 225 24 . . 123 192 13 . 159 Effects 1 | . . . . . . . . . . . 1 . . . Energy Bleed 1 | . . . . . . . . . . . 1 . . . Siege Activations . | . . . . . . . . . . . . . . . Martial Activations . | . . . . . . . . . . . . . . . Shielding Activations . | . . . . . . . . . . . . . . . Robots Disrupted . | . . . . . . . . . . . . . . . Combat Hostiles . | . . . . . . . . . . . . . . . Robots Corrupted 31 | . . 2 9 2 . . . . . 2 8 1 . 7 Combat Hostiles 14 | . . . 1 . . . . . . 2 6 . . 5 Parts Fried 46 | . . 4 12 7 . . . . . 2 8 1 . 12 Impact Corruptions 83 | . . 6 26 7 . . . . . 7 13 2 1 21 Robots Melted . | . . . . . . . . . . . . . . . Combat Hostiles . | . . . . . . . . . . . . . . . Parts Melted . | . . . . . . . . . . . . . . . Heat Transferred 50 | . . . . . . . . . . . . . . 50 Parts Sabotaged . | . . . . . . . . . . . . . . . Parts Stolen . | . . . . . . . . . . . . . . . Parts Stripped . | . . . . . . . . . . . . . . . Power Chain Reactions 2 | . . . . . . . . . . . . . . 2 Alert | -11 -10 -9 -9 -8 -7 -7 -7 -7 -6 -6 -6 -6 -6 -6 ------- Run | Yrd Mat Mat Sto Mat Fac Low Low Zio Pro Fac Ext Cet Arc Hub Maximum Alert Level 3 | . . . 2 2 1 . . . . . . . . 3 Low Security (%) 72 | 100 100 100 18 58 56 . . . . 100 100 100 100 8 Level 1 9 | . . . 27 27 43 . . . . . . . . 15 Level 2 11 | . . . 53 14 . . . . . . . . . 35 Level 3 6 | . . . . . . . . . . . . . . 40 Level 4 . | . . . . . . . . . . . . . . . Level 5 . | . . . . . . . . . . . . . . . High Security . | . . . . . . . . . . . . . . . Max Security . | . . . . . . . . . . . . . . . Peak Influence 864 | . 35 31 551 501 272 . . . . 122 162 174 180 864 Initial 227 | . . 5 . 164 227 . . . . . 30 61 56 . Average 173 | . 15 6 357 254 177 . . . . 27 66 47 28 577 Influence Increases 5991 | . 45 80 995 437 199 240 168 . 130 410 648 296 264 2079 Destroy 0b10 Robot/C 2340 | . 20 . 400 . 40 180 140 . 80 220 360 140 80 680 Destroy 0b10 Robot/NC 395 | . . 20 80 20 35 . . . . 55 40 10 35 100 Destroy Leader 480 | . 10 . 124 6 16 . 10 . 20 66 44 . . 184 Allied During Kill 1152 | . . . 166 . . . 18 . . . 184 126 115 543 Successful Hack 126 | . . 6 31 58 21 . . . . 10 . . . . Disable Machine 465 | . . . 75 15 15 . . . . . 15 . 30 315 Destroy Structure 298 | . . 9 14 8 12 . . . . 14 5 20 4 212 Partial Spotted 150 | . . 30 75 30 . . . . . . . . . 15 Lose Combat Pursuer 585 | . 15 15 30 300 60 60 . . 30 45 . . . 30 Influence Decreases 5189 | . 30 95 605 326 616 324 168 . 130 348 600 266 404 1277 Entered New Map 707 | . . 10 . 226 274 32 . . . . 32 49 84 . Time Decay 3071 | . 30 85 395 100 342 262 148 . 106 278 408 145 260 512 Lost Part 294 | . . . . . . 30 . . 24 10 20 . . 210 Lost Ally 667 | . . . 210 . . . 20 . . 60 140 72 60 105 Purge Threat 450 | . . . . . . . . . . . . . . 450 Squads Dispatched 26 | . . . 3 1 3 . . . . 5 2 . . 12 Investigation 2 | . . . . . . . . . . . 1 . . 1 Extermination 7 | . . . . . 1 . . . . 3 . . . 3 Reinforcement 13 | . . . 1 1 2 . . . . 2 1 . . 6 Assault 3 | . . . 2 . . . . . . . . . . 1 Garrison 1 | . . . . . . . . . . . . . . 1 Intercept . | . . . . . . . . . . . . . . . Searches Triggered . | . . . . . . . . . . . . . . . Construction Impeded 2 | . . . 1 . . . . . . . . . . 1 Haulers Reinforced 2 | . . . . . 1 . . . . 1 . . . . Active Scanning Responses . | . . . . . . . . . . . . . . . Cargo Convoy Interrupts . | . . . . . . . . . . . . . . . Stealth | -11 -10 -9 -9 -8 -7 -7 -7 -7 -6 -6 -6 -6 -6 -6 --------- Run | Yrd Mat Mat Sto Mat Fac Low Low Zio Pro Fac Ext Cet Arc Hub Distress Signals 7 | . 1 . . 1 . . . . . . 1 2 . 2 Communications Jammed 24 | . . . . . . . . . . 24 . . . . Distress Signals 24 | . . . . . . . . . . 24 . . . . Times Spotted 195 | . 11 2 21 27 11 13 5 1 6 13 23 11 4 47 Peak Tracking Total 16 | . 8 3 4 16 6 9 3 1 3 3 4 5 2 7 Tactical Retreats 16 | . 1 1 1 4 2 3 . . 1 1 . . . 2 Traps | -11 -10 -9 -9 -8 -7 -7 -7 -7 -6 -6 -6 -6 -6 -6 ------- Run | Yrd Mat Mat Sto Mat Fac Low Low Zio Pro Fac Ext Cet Arc Hub Traps Triggered 8 | . 3 . . . 3 . . . . . . . . 2 Indirectly 1 | . . . . . . . . . . . . . . 1 Trap Hack Attempts . | . . . . . . . . . . . . . . . Triggered . | . . . . . . . . . . . . . . . Disarmed . | . . . . . . . . . . . . . . . Reprogrammed . | . . . . . . . . . . . . . . . Reused . | . . . . . . . . . . . . . . . Traps Extracted . | . . . . . . . . . . . . . . . Installed . | . . . . . . . . . . . . . . . Triggered . | . . . . . . . . . . . . . . . Machines | -11 -10 -9 -9 -8 -7 -7 -7 -7 -6 -6 -6 -6 -6 -6 ---------- Run | Yrd Mat Mat Sto Mat Fac Low Low Zio Pro Fac Ext Cet Arc Hub Machines Disabled 33 | . . . 5 1 1 . . . . . 3 . 2 21 Max in Single Turn 6 | . . . 1 1 1 . . . . . 1 . . 6 Garrison Access 4 | . . . 1 . . . . . . 2 . . . 1 Network Hub 3 | . . . . . . . . . . . . . . 3 Machines Repaired . | . . . . . . . . . . . . . . . Machines Dismantled . | . . . . . . . . . . . . . . . Machines Sabotaged . | . . . . . . . . . . . . . . . Overloaded Fab Kills . | . . . . . . . . . . . . . . . Hacking | -11 -10 -9 -9 -8 -7 -7 -7 -7 -6 -6 -6 -6 -6 -6 --------- Run | Yrd Mat Mat Sto Mat Fac Low Low Zio Pro Fac Ext Cet Arc Hub Machines Accessed 46 | . . 4 14 7 10 3 . 1 . 6 . . . 1 Terminals 21 | . . 1 9 6 5 . . . . . . . . . Fabricators 2 | . . . . . 1 . . . . 1 . . . . Repair Stations 3 | . . . 2 . 1 . . . . . . . . . Recycling Units 8 | . . 1 2 1 2 . . . . 2 . . . . Scanalyzers 4 | . . 2 . . 1 . . . . 1 . . . . Garrison Access 4 | . . . 1 . . . . . . 2 . . . 1 Total Hacks 115 | . . 9 36 21 26 6 . 3 . 12 . . . 2 Successful 66 | . . 3 18 14 15 6 . 3 . 6 . . . 1 Failed 48 | . . 6 17 7 11 . . . . 6 . . . 1 Catastrophic 7 | . . 2 . 1 3 . . . . 1 . . . . Database Lockouts 1 | . . . 1 . . . . . . . . . . . Manual 41 | . . 2 19 10 6 . . . . 3 . 1 . . Terminals 55 | . . 2 27 19 7 . . . . . . . . . Fabricators 5 | . . . . . 1 . . . . 4 . . . . Repair Stations 5 | . . . 3 . 2 . . . . . . . . . Recycling Units 17 | . . 3 5 2 4 . . . . 3 . . . . Scanalyzers 18 | . . 4 . . 12 . . . . 2 . . . . Garrison Access 6 | . . . 1 . . . . . . 3 . . . 2 Terminal Hacks 26 | . . . 6 9 2 6 . 3 . . . . . . Record 5 | . . . 1 . . 4 . . . . . . . . Part Schematic 3 | . . . . . . . . 3 . . . . . . Robot Analysis 1 | . . . 1 . . . . . . . . . . . Prototype ID Bank 3 | . . . . 3 . . . . . . . . . . Open Door 3 | . . . 1 . . 2 . . . . . . . . Branch Access Points 1 | . . . . . 1 . . . . . . . . . Locate Traps 1 | . . . 1 . . . . . . . . . . . Recall Investigation 1 | . . . . 1 . . . . . . . . . . Hauler Manifests 2 | . . . 1 1 . . . . . . . . . . Registered Components 2 | . . . . 1 1 . . . . . . . . . Registered Prototypes 1 | . . . . 1 . . . . . . . . . . Zone Layout 3 | . . . 1 2 . . . . . . . . . . Fabricator Hacks 1 | . . . . . . . . . . 1 . . . . Network Status 1 | . . . . . . . . . . 1 . . . . Repair Station Hacks 3 | . . . 3 . . . . . . . . . . . Scan Component 2 | . . . 2 . . . . . . . . . . . Repair 1 | . . . 1 . . . . . . . . . . . Recycling Unit Hacks 4 | . . . 1 1 2 . . . . . . . . . Retrieve Components 4 | . . . 1 1 2 . . . . . . . . . Scanalyzer 15 | . . 2 . . 11 . . . . 2 . . . . Insert Component 5 | . . 1 . . 4 . . . . . . . . . Analyze 4 | . . . . . 4 . . . . . . . . . Retrieve Study 6 | . . 1 . . 3 . . . . 2 . . . . Garrison Access Hacks 4 | . . . 1 . . . . . . 2 . . . 1 Seal Access 4 | . . . 1 . . . . . . 2 . . . 1 Unauthorized Hacks 13 | . . 1 7 4 . . . . . 1 . . . . Terminals 12 | . . 1 7 4 . . . . . . . . . . Assimilate 1 | . . 1 . . . . . . . . . . . . Botnet 4 | . . . 2 2 . . . . . . . . . . Disrupt 1 | . . . . 1 . . . . . . . . . . Operators 1 | . . . . 1 . . . . . . . . . . Skim 5 | . . . 5 . . . . . . . . . . . Fabricators 1 | . . . . . . . . . . 1 . . . . Liberate 1 | . . . . . . . . . . 1 . . . . Repair Stations . | . . . . . . . . . . . . . . . Recycling Units . | . . . . . . . . . . . . . . . Scanalyzers . | . . . . . . . . . . . . . . . Garrison Access . | . . . . . . . . . . . . . . . Data Cores Recovered 2 | . . . 1 . 1 . . . . . . . . . Used 2 | . . . 1 . 1 . . . . . . . . . Hacking Detections 35 | . . 4 12 6 8 . . . . 4 . 1 . . Full Trace Events 1 | . . 1 . . . . . . . . . . . . Feedback Events . | . . . . . . . . . . . . . . . Feedback Blocked . | . . . . . . . . . . . . . . . Robot Schematics Acquired 4 | . . . . . . . . 4 . . . . . . Robots Built . | . . . . . . . . . . . . . . . Authchips . | . . . . . . . . . . . . . . . Time . | . . . . . . . . . . . . . . . Total Robot Build Rating . | . . . . . . . . . . . . . . . Part Schematics Acquired 21 | . . . . . 4 . . 17 . . . . . . Parts Built . | . . . . . . . . . . . . . . . Authchips . | . . . . . . . . . . . . . . . Time . | . . . . . . . . . . . . . . . Total Part Build Rating . | . . . . . . . . . . . . . . . Part Studies Acquired 6 | . . 1 . . 3 . . . . 2 . . . . Parts Repaired 1 | . . . 1 . . . . . . . . . . . Time 32 | . . . 32 . . . . . . . . . . . Parts Recycled . | . . . . . . . . . . . . . . . Recycled Matter . | . . . . . . . . . . . . . . . Retrieved Matter . | . . . . . . . . . . . . . . . Retrieved Components 11 | . . . . 1 10 . . . . . . . . . Parts Scanalyzed 4 | . . . . . 4 . . . . . . . . . Part Schematics Acquired 4 | . . . . . 4 . . . . . . . . . Parts Damaged . | . . . . . . . . . . . . . . . Bothacking | -11 -10 -9 -9 -8 -7 -7 -7 -7 -6 -6 -6 -6 -6 -6 ------------ Run | Yrd Mat Mat Sto Mat Fac Low Low Zio Pro Fac Ext Cet Arc Hub Used RIF Installer . | . . . . . . . . . . . . . . . Robots Hacked . | . . . . . . . . . . . . . . . Non-combat . | . . . . . . . . . . . . . . . Combat . | . . . . . . . . . . . . . . . Robot Hacks Applied . | . . . . . . . . . . . . . . . Relay Couplers Released . | . . . . . . . . . . . . . . . Fabnet Peak Effective % . | . . . . . . . . . . . . . . . Robots Rewired 16 | . . . . . . 2 . . . . 14 . . . Allies Hacked . | . . . . . . . . . . . . . . . Hacks Repelled . | . . . . . . . . . . . . . . . Allies | -11 -10 -9 -9 -8 -7 -7 -7 -7 -6 -6 -6 -6 -6 -6 -------- Run | Yrd Mat Mat Sto Mat Fac Low Low Zio Pro Fac Ext Cet Arc Hub Total Allies 49 | . . 1 12 . . 2 . . . 4 24 5 . 1 Largest Group 12 | . . 1 10 . . 2 2 . . 3 12 12 10 6 Highest-Rated Group 796 | . . 10 91 . . 52 52 . . 87 487 796 765 454 Highest-Rated Ally 159 | . . 10 31 . . 32 32 . . 29 159 159 159 96 Total Orders 30 | . . . . . . . 1 . . 8 9 1 2 9 STAY 2 | . . . . . . . 1 . . . . . 1 . FOLLOW 1 | . . . . . . . . . . . . . 1 . RETURN 27 | . . . . . . . . . . 8 9 1 . 9 Ally Attacks 547 | . . . 131 . . . 14 . . 44 128 76 31 123 Total Damage 11918 | . . . 1234 . . . 336 . . 535 2273 2179 998 4363 Kills 86 | . . . 19 . . . 4 . . 3 17 9 4 30 Allies Corrupted . | . . . . . . . . . . . . . . . Allies Melted 1 | . . . . . . . . . . . 1 . . . Intel | -11 -10 -9 -9 -8 -7 -7 -7 -7 -6 -6 -6 -6 -6 -6 ------- Run | Yrd Mat Mat Sto Mat Fac Low Low Zio Pro Fac Ext Cet Arc Hub Active Infowar (turns) 13485 | . 55 344 943 219 776 1407 1202 3886 494 1684 1312 93 . 1070 Sensors 11908 | . . . . 208 776 1407 1202 3886 494 1645 1127 93 . 1070 Structural 6684 | . . . . . 775 1045 1202 1155 360 1446 701 . . . Seismic 1763 | . 55 344 943 219 202 . . . . . . . . . Jamming 55 | . . . . . . . . . . 55 . . . . ECM 1 | . . . . . . . . . . 1 . . . . Robot Analysis Total 1 | . . . 1 . . . . . . . . . . . Derelict Logs Recovered 6 | . . . . . . 2 1 1 2 . . . . . Drone Launches 27 | . . . . . . . . . . 8 9 1 . 9 Drone Recoveries 27 | . . . . . . . . . . 8 9 1 . 9 Exploration | -11 -10 -9 -9 -8 -7 -7 -7 -7 -6 -6 -6 -6 -6 -6 ------------- Run | Yrd Mat Mat Sto Mat Fac Low Low Zio Pro Fac Ext Cet Arc Hub Turns Passed 16789 | 24 108 344 943 219 776 1482 1202 3888 606 1776 1331 453 2061 1576 Spaces Moved 10247 | 35 184 596 1345 601 1092 1056 815 913 402 1177 762 236 135 898 Core 239 | 35 184 20 . . . . . . . . . . . . Treads . | . . . . . . . . . . . . . . . Legs 6547 | . . . . . 250 1056 815 913 402 1177 762 236 135 801 Wheels 97 | . . . . . . . . . . . . . . 97 Hover . | . . . . . . . . . . . . . . . Flight 3364 | . . 576 1345 601 842 . . . . . . . . . Fastest Speed 23 | 50 50 26 26 26 23 126 126 126 120 115 115 117 117 100 Average Speed 89 | 50 50 27 26 26 53 126 126 126 121 119 118 117 117 121 Slowest Speed 190 | 50 50 75 109 26 126 130 126 126 126 123 188 117 117 190 Overloaded Moves 2 | . . . . . 2 . . . . . . . . . Propulsion Burnouts . | . . . . . . . . . . . . . . . Robots Hopped 14 | . . 2 5 7 . . . . . . . . . . Potential Cave-ins . | . . . . . . . . . . . . . . . Cave-ins Triggered 2 | . . . . . . . . . . . . . . 2 Exploration Rate (%) 61 | 3 37 28 96 61 23 94 96 84 62 35 84 69 73 82 Regions Visited 14 Branch Regions 9 Pre-discovered Areas 5 | . . . 2 . . . 1 1 1 . . . . . Known Exits Taken 10 | . . . . 1 1 1 1 1 1 1 1 1 1 . Unknown Exits Taken 4 | 1 1 1 1 . . . . . . . . . . . Scrap Searched 12 | . . . . . . 3 3 1 5 . . . . . Spaces Dug 86 | . . 9 13 8 12 5 6 . 1 14 . . . 18 Terrain Destroyed 392 | . . 9 13 8 12 5 6 . 1 14 . . . 324 Melee 86 | . . 9 13 8 12 5 6 . 1 14 . . . 18 Projectile . | . . . . . . . . . . . . . . . AOE 306 | . . . . . . . . . . . . . . 306 Terrain Rammed . | . . . . . . . . . . . . . . . Walls Destroyed . | . . . . . . . . . . . . . . . Machines Disabled . | . . . . . . . . . . . . . . . Actions | -11 -10 -9 -9 -8 -7 -7 -7 -7 -6 -6 -6 -6 -6 -6 --------- Run | Yrd Mat Mat Sto Mat Fac Low Low Zio Pro Fac Ext Cet Arc Hub Total 17085 | 40 199 745 1830 622 1220 1133 967 3644 482 1468 1107 411 2017 1200 Wait 5938 | . 3 119 415 2 46 14 137 2720 30 166 122 157 1857 150 Move 10206 | 34 183 591 1334 587 1091 1055 814 912 401 1176 761 235 134 898 Hop 13 | . . 2 5 6 . . . . . . . . . . Pick Up 55 | 4 5 4 . 1 5 6 3 1 4 12 4 2 . 4 Fast Attach 72 | 2 1 6 6 4 13 2 . 1 1 7 8 1 8 12 Attach 24 | . . 1 . . 3 2 . . 6 3 1 2 . 6 Detach 5 | . . . 1 . 2 . . . . . . 1 . 1 Swap 143 | . . . 5 . 13 7 2 4 4 36 25 7 4 36 Drop 86 | . 4 5 7 3 16 1 . 3 2 14 15 5 6 5 Fire . | . . . . . . . . . . . . . . . Melee 396 | . . 17 57 19 31 35 11 3 34 53 39 1 8 88 Ram 1 | . 1 . . . . . . . . . . . . . Kick 1 | . . . . . . . . . . 1 . . . . Crush 2 | . 2 . . . . . . . . . . . . . Escape Stasis . | . . . . . . . . . . . . . . . Rewire 143 | . . . . . . 11 . . . . 132 . . . Trap . | . . . . . . . . . . . . . . . Miscellaneous . | . . . . . . . . . . . . . . . Route ------- -11/Scrapyard -10/Materials -9/Materials -9/Storage (discovered 2 exits: *Mat / [*Rec]) -8/Materials -7/Factory (discovered 2 exits: *Low x2) -7/Lower Caves -7/Lower Caves (discovered 2 exits: *Fac / *Zio) -7/Zion -6/Proximity Caves -6/Factory (discovered 8 exits: *Fac x4 / *Low x2 / *Ext x2) -6/Extension (discovered 3 exits: *Fac x2 / *Cet) -6/Cetus (discovered 2 exits: *Fac / *Arc) -6/Archives (discovered 2 exits: *Fac / *Hub) -6/Hub_04(d) (discovered 4 exits: *Fac x4) History --------- Turn | Location | Event 18 | -11/Scrapyard | Discovered new exit (range 16) 25 | -11/Scrapyard | Entered Materials 125 | -10/Materials | Discovered new exit (range 15) 133 | -10/Materials | Entered another Materials area 133 | -9/Materials | Evolved 2 slots: Propulsion x2 198 | -9/Materials | Discovered new exit (range 6) 446 | -9/Materials | Build established: Sprinter 477 | -9/Materials | Entered Storage 477 | -9/Storage | Accompanied by 1 ally 552 | -9/Storage | Assisted by bots powering up and referring to "LRC-V3" 769 | -9/Storage | Discovered new exit (range 15) 797 | -9/Storage | Used back door to open Recycling access 848 | -9/Storage | Build established: Commander-Sprinter 857 | -9/Storage | Central database locked down 877 | -9/Storage | Lost 3 allies 901 | -9/Storage | Discovered new exit (range 2) 1005 | -9/Storage | Repaired VTOL Module+ 1124 | -9/Storage | Learned location of Zion (-7) 1137 | -9/Storage | Loaded intel: 27 trap records 1211 | -9/Storage | Learned Storage stockpile data 1256 | -9/Storage | Learned Materials emergency access door positions 1287 | -9/Storage | Met a pair of Derelict thieves 1328 | -9/Storage | Build established: Sprinter 1420 | -9/Storage | Entered Materials 1420 | -8/Materials | Evolved 2 slots: Utility x2 1600 | -8/Materials | Discovered new exit (range 14) 1638 | -8/Materials | Identified exit to Factory 1639 | -8/Materials | Entered Factory 1639 | -7/Factory | Evolved 2 slots: Propulsion x1, Utility x1 1939 | -7/Factory | Build established: Scout 1996 | -7/Factory | Identified exit to Lower Caves 2357 | -7/Factory | Build established: Gladiator 2415 | -7/Factory | Entered Lower Caves 2634 | -7/Lower Caves | Attracted the attention of an 0b10 outpost 2720 | -7/Lower Caves | Lost 3 parts (1n1u1w) 2728 | -7/Lower Caves | Destroyed 7 combat bots 3548 | -7/Lower Caves | Encountered a Warlord checkpoint 3567 | -7/Lower Caves | Discovered new exit (range 12) 3717 | -7/Lower Caves | Entered an active Warlord outpost 3736 | -7/Lower Caves | Learned Armory trap positions 3736 | -7/Lower Caves | Learned Extension stockpile data 3891 | -7/Lower Caves | Identified exit to Lower Caves 3897 | -7/Lower Caves | Entered another Lower Caves area 3897 | -7/Lower Caves | Accompanied by 2 allies 3924 | -7/Lower Caves | Discovered new exit (range 15) 3943 | -7/Lower Caves | Identified exit to Factory 4167 | -7/Lower Caves | Attracted the attention of an 0b10 checkpoint 4908 | -7/Lower Caves | Discovered new exit (range 7) 5098 | -7/Lower Caves | Identified exit to Zion 5099 | -7/Lower Caves | Entered Zion 5113 | -7/Zion | Given A8's code to call for help 5192 | -7/Zion | System corruption cleaned by Quarantine Array 5222 | -7/Zion | Given the Hacking Drone Bay 5223 | -7/Zion | Found Prototype Device 5225 | -7/Zion | Discovered new exit (range 13) 8338 | -7/Zion | Loaded intel: 6 derelict terminal locations 8723 | -7/Zion | Met Imprinter 8978 | -7/Zion | Identified exit to Proximity Caves 8987 | -7/Zion | Entered Proximity Caves 9061 | -6/Proximity Caves | Lost 5 parts (1p2n1u1w) 9135 | -6/Proximity Caves | Learned Factory stockpile data 9193 | -6/Proximity Caves | Learned location of Extension (-6) 9300 | -6/Proximity Caves | Attracted the attention of an 0b10 checkpoint 9580 | -6/Proximity Caves | Discovered exit to Factory (range 5) 9593 | -6/Proximity Caves | Entered Factory 9593 | -6/Factory | Evolved 2 slots: Power x1, Utility x1 9593 | -6/Factory | Identified Hacking Drone Bay 9594 | -6/Factory | Identified exit to Extension 10156 | -6/Factory | Identified exit to Factory 10352 | -6/Factory | Lost 3 parts (1p2n) 10434 | -6/Factory | Identified exit to Lower Caves 10991 | -6/Factory | Found Hvy. Reactive Plating 11277 | -6/Factory | System corruption reached 10% 11369 | -6/Factory | Entered Extension 11587 | -6/Extension | Rescued a captive Derelict 11588 | -6/Extension | Rescued a captive Derelict 11620 | -6/Extension | Rescued a captive Derelict 11694 | -6/Extension | Rescued a captive Derelict 11696 | -6/Extension | Rescued a captive Derelict 11721 | -6/Extension | Rescued a captive Derelict 11757 | -6/Extension | Rescued a captive Derelict 11757 | -6/Extension | Rescued a captive Derelict 12049 | -6/Extension | Spotted B-75 Beast 12061 | -6/Extension | Spotted B-75 Beast 12065 | -6/Extension | Allies destroyed B-75 Beast 12084 | -6/Extension | Allies destroyed B-75 Beast 12135 | -6/Extension | Rescued a captive Derelict 12209 | -6/Extension | Lost 6 allies 12268 | -6/Extension | Lost 3 allies 12317 | -6/Extension | Identified exit to Cetus 12341 | -6/Extension | Rescued A7 12378 | -6/Extension | Build established: Scavenger-Gladiator 12700 | -6/Extension | Entered Cetus 12700 | -6/Cetus | Accompanied by 12 allies (A7) 12705 | -6/Cetus | Acquired a Cetus Manufacturing Module code from A7 12756 | -6/Cetus | Spotted Cetus Guard 12759 | -6/Cetus | Spotted Cetus Guard 12759 | -6/Cetus | Spotted Cetus Guard 12760 | -6/Cetus | Spotted Cetus Guard 12773 | -6/Cetus | Allies destroyed Cetus Guard 12778 | -6/Cetus | Allies destroyed Cetus Guard 12779 | -6/Cetus | Build established: Commander-Gladiator 12779 | -6/Cetus | Allies destroyed Cetus Guard 12805 | -6/Cetus | Lost 6 allies 12891 | -6/Cetus | Started Cetus Manufacturing Module 12905 | -6/Cetus | Escorted A7 to Cetus Mainframe 12916 | -6/Cetus | Manufactured an Enhanced Grunt 12941 | -6/Cetus | Manufactured an Enhanced Grunt 12941 | -6/Cetus | Discovered new exit (range 16) 12966 | -6/Cetus | Manufactured an Enhanced Grunt 12991 | -6/Cetus | Manufactured an Enhanced Grunt 13016 | -6/Cetus | Manufactured an Enhanced Grunt 13042 | -6/Cetus | Spotted Cetus Guard 13042 | -6/Cetus | Spotted Cetus Guard 13046 | -6/Cetus | Spotted Cetus Guard 13050 | -6/Cetus | Spotted Cetus Guard 13054 | -6/Cetus | Allies destroyed Cetus Guard 13061 | -6/Cetus | Allies destroyed Cetus Guard 13063 | -6/Cetus | Allies destroyed Cetus Guard 13063 | -6/Cetus | Allies destroyed Cetus Guard 13072 | -6/Cetus | Discovered exit to Factory (range 15) 13080 | -6/Cetus | Met Revision 17 13124 | -6/Cetus | Identified exit to Archives 13153 | -6/Cetus | Entered Archives 13153 | -6/Archives | Accompanied by 10 allies (A7) 13158 | -6/Archives | Received a hacking code to weaken MAIN.C 13223 | -6/Archives | Lost 3 allies 13311 | -6/Archives | Discovered exit to Factory (range 16) 13396 | -6/Archives | Discovered new exit (range 13) 13409 | -6/Archives | Identified exit to Hub_04(d) 15214 | -6/Archives | Entered Hub_04(d) 15214 | -6/Hub_04(d) | Accompanied by 6 allies 15370 | -6/Hub_04(d) | Discovered exit to Factory (range 6) 15656 | -6/Hub_04(d) | Build established: Scavenger-Gladiator 15706 | -6/Hub_04(d) | Discovered exit to Factory (range 20) 15794 | -6/Hub_04(d) | Spotted B-75 Beast 15805 | -6/Hub_04(d) | Garrison activated, responded to threat 15813 | -6/Hub_04(d) | Allies destroyed B-75 Beast 16053 | -6/Hub_04(d) | Crushed by falling debris 16264 | -6/Hub_04(d) | First assault squad dispatched 16302 | -6/Hub_04(d) | Network Hub disabled 16431 | -6/Hub_04(d) | Spotted Lightning 16433 | -6/Hub_04(d) | Spotted Lightning 16440 | -6/Hub_04(d) | Spotted Lightning 16468 | -6/Hub_04(d) | Destroyed Lightning 16477 | -6/Hub_04(d) | Destroyed Lightning 16514 | -6/Hub_04(d) | System corruption reached 30% 16535 | -6/Hub_04(d) | Destroyed Lightning 16570 | -6/Hub_04(d) | Core integrity fell below 50% 16604 | -6/Hub_04(d) | Lost 3 parts (3n) 16614 | -6/Hub_04(d) | Found Prototype Processor 16617 | -6/Hub_04(d) | Found Prototype Device 16617 | -6/Hub_04(d) | Identified Exp. Phase Shifter 16658 | -6/Hub_04(d) | Network Hub disabled 16726 | -6/Hub_04(d) | Lost 3 parts (1p1n1w) 16739 | -6/Hub_04(d) | Found Hvy. Reactive Plating 16759 | -6/Hub_04(d) | Crushed by falling debris 16763 | -6/Hub_04(d) | Network Hub disabled 16769 | -6/Hub_04(d) | Core integrity fell below 20% 16779 | -6/Hub_04(d) | Spotted Lightning 16781 | -6/Hub_04(d) | Spotted Lightning 16790 | -6/Hub_04(d) | Destroyed by Lightning with EMDS Last Messages --------------- 16763_ Network Hub explodes. 16763_ Quantum Reactor destroyed. 16763_ G-50 Soldier destroyed. 16763_ G-67 Veteran destroyed. 16764_ G-50 Soldier system terminally corrupted. 16775_ System corrupted: Component data lost. 16775_ Com. Wheel destroyed. 16783_ Penetrated by EMDS Slug. 16784_ Control Node disabled. 16784_ Lightning Prototype Leg severed. 16788_ Acquired Prototype Leg. 16788_ Identified Enh. Biometal Leg. 16788_ Penetrated by EMDS Slug. 16788_ Terminal disabled. 16790_ Powered Hammer+ follow-up attack on Lightning. 16790_ Lightning knocked back. 16790_ Penetrated by EMDS Slug. 16790_ Phasing Sabre destroyed. 16790_ Imp. VSS Leg destroyed. Map ----- +----------------------------------------------------+ | ?????????????????????????????????????????????????? | | ?????????????????????????????????????????????????? | | ?????????????????????????????????????????????????? | | ?????????????????????????????????????????????????? | | ?????????????????????????????????????????????????? | | ?????????????????????????????????????????????????? | | ##########???????????????????????????????????????? | | #???????????????????????????????????????? | | #???????????????????????????????????????? | | " " " " #???????????????????????????????????????? | | " " " " #???????????????????????????????????????? | | " " " " #???????????????????????????????????????? | | #???????????????????????????????????????? | | #???????????????????????????????????????? | | #???????????????????????????????????????? | | ####+#####???????????????????????????????????????? | | # #################??????????????????????????? | | # # #??????????????????????????? | | + # " " " " " " " #??????????????????????????? | | # # " " " " " " " #??????????????????????????? | | + + " " " " " " " #??????????????????????????? | | # # ##??????????###############? | | # ################################ # | | # ########### ! """"" ;; ! !# | | ##" # ""G"" + ""T " ## !! """"""""""""" | | ?## # "" "" # h @ xx##! !! "" " | | ??# # #! """h "" ## "" " | | ??# !#! """"%# ! ## ="" " | | ??# %#![ """"!#####i######### "" " | | ??# #![! """"%+*%%==#?# """""""""="" " | | ??# [+*%!% """=###%! #?# " !*%=" " | | ### #= ]=*% =#?#[ #?# " %[%=%" " | | ### ###+######### ### " """"%"=*" " | | # # #?## ###### ## =!==" " | | T # #""" #?## #" ! " " | | % # #"" " #??# =% ## " " | | # #"""" #?## = ## =! """"""""""""" | | + #"""" #?#" #### =[ # | | # # #?### [%!##! =[ # # | | # # #???# !!! !!## %############# | | !!# + #???# !!! "####"##/#???????????? | | ! # %# #???# !!! ##?? ?# #??######???? | | ### ##########???# #######??##??# #??# ###?? | | # # #???#+##????????????# #### """#? | | # # #?? ???????????????# "#? | | # # #? ?????????????????+ "#? | | # # ##?????????#????????# "#? | | + + #??????????# ??????# ## """#? | | # # #??????????#=!! ????# ## ####? | | # # ! #??????????#!!! "??+ #######???? | +----------------------------------------------------+ Best States ------------- Heat Dissipation 63 Energy Generation 37 Energy Capacity 540 Matter Stores 300 Matter Capacity 300 Sight Range 16 Robot Scan Range 16 Terrain Scan Density 10 Jamming Range 14 Armor Coverage 825 Resistance: KI 40 Resistance: TH 10 Melee Speed Boost 20 Evasion (%) 65 Melee Accuracy 12 Force Boost 20 Salvage Targeting 4 Item Schematics ----------------- Melee Analysis Suite | -7/Factory | Scanalyzed Med. Armor Plating | -7/Factory | Scanalyzed Lrg. Storage Unit | -7/Factory | Scanalyzed Force Booster | -7/Factory | Scanalyzed Remote Datajack | -7/Zion | Archive EM Shield | -7/Zion | Archive Imp. Cryofiber Web | -7/Zion | Archive Adv. Terrain Scan Processor | -7/Zion | Archive Hvy. Machine Gun | -7/Zion | Archive Plasma Cannon | -7/Zion | Archive Imp. Shock Absorption System | -7/Zion | Archive IFF Parser | -7/Zion | Archive Kinecellerator | -7/Zion | Archive Microactuators | -7/Zion | Archive Matter Filter | -7/Zion | Archive Drone Bay | -7/Zion | Archive Hvy. Ion Cannon | -7/Zion | Archive Adv. Hacking Suite | -7/Zion | Archive Riot Gun | -7/Zion | Free Flamer | -7/Zion | Free Barrage Gun | -7/Zion | Free Robot Schematics ------------------ K-01 Serf | -7/Zion | Archive R-06 Scavenger | -7/Zion | Archive A-02 Transporter | -7/Zion | Archive X-77 Beamer | -7/Zion | Archive Fabricated ------------ Nothing Repaired ---------- VTOL Module | 12% | -9/Storage Studied --------- VTOL Module | -9/Materials | Hacked Greatsword | -7/Factory | Hacked Mic. Nuclear Core | -7/Factory | Hacked Scythe | -7/Factory | Hacked Flexi-carbon Leg | -6/Factory | Hacked Powered Hammer | -6/Factory | Hacked Alien Tech Used ----------------- None Achievements -------------- None Challenges ------------ None Game ------ Seed HellfireArcsightInterrupter Manual? 0 Play Time 01:57:38 Cumulative 677.4 hours Start 2026.03.30 @ 13:37:12 End 2026.03.30 @ 18:49:34 Sessions 3 Manual Loads 0 Difficulty Rogue Special Mode None Game No. 368 Rogue 368 Adventurer 0 Explorer 0 Win Type - Total 29 Types 14/1/6/2/1/1/1/2/1/0 Lore% 92 Gallery% 86 Achievement% 78 Wizard Run 0 Options --------- Layout 1 ASCII 0 Keyboard 0 Movement Numpad Keybinds 0 Fullscreen 2 Font 24/Smallcaps Map View 50x40 Zoom Use 0% Tactical HUD 1 Map Filters NONE Filters NONE Steam 1 RUN: 2aec0f7d-9c18-4dd4-bc13-223a0d985af4